Cogmind - Beta 13 @@@ ROGUE MODE // 2024.03.25 @ 10:01:42 Player: Ether Result: Destroyed by G-50 Soldier with Heavy Laser Performance ------------- Evolutions (4) 2000 Regions Visited (5) 1000 Robots Destroyed (37) 185 Value Destroyed (837) 837 Prototype IDs (5) 100 Alien Tech Used (0) 0 Bonus (0) 0 TOTAL SCORE: 4122 Bonus ------- None Cogmind --------- Core Integrity 0/850 Matter 300/300 Energy 100/100 System Corruption 5% Temperature Cool (21) Movement Core (50) Location -6/Factory Parts ------- > --- POWER (2) -------- (None) > --- PROPULSION (4) --- (None) > --- UTILITY (6) ------ Signal Interpreter > --- WEAPON (3) ------- (None) > --- INVENTORY (5) ---- Flexi-carbon Leg Signal Interpreter Advanced ECM Suite System Restoration Module Improved Datajack Peak State ------------ > --- POWER ------------ Micro Nuclear Core > --- PROPULSION ------- Xenon Bombardment Thruster Xenon Bombardment Thruster Xenon Bombardment Thruster Improved Cesium-ion Thruster > --- UTILITY ---------- Small Storage Unit Visual Processing Unit Signal Interpreter Improved Targeting Computer > --- WEAPON ----------- Lightning Gun Lightning Gun Gauss Cannon > --- INVENTORY -------- Improved Ion Engine Cooled VTOL Module Signal Interpreter Improved Terrain Scanner Advanced Terrain Scan Processor Advanced ECM Suite Advanced ECM Suite [Rating: 41] Favorites ----------- Power Improved Ion Engine Engine Improved Ion Engine Power Core Micro Nuclear Core Propulsion Aluminum Leg Leg Aluminum Leg Flight Unit Xenon Bombardment Thruster Utility Small Storage Unit Device Improved Terrain Scanner Storage Small Storage Unit Processor Signal Interpreter Hackware Hacking Suite Weapon Assault Rifle Energy Gun Medium Laser Ballistic Gun Assault Rifle Ballistic Cannon Gauss Cannon Launcher Grenade Launcher Build | -11 -10 -10 -8 -7 -6 ------- Run | Yrd Mat Sub Mat Fac Fac Slots Evolved 8 | . . . 4 2 2 Power 1 | . . . . 1 . Propulsion 2 | . . . 2 . . Utility 4 | . . . 2 . 2 Weapon 1 | . . . . 1 . Parts Attached 62 | 7 20 . 13 16 6 Power 8 | 1 3 . . 4 . Engine 7 | 1 3 . . 3 . Core 1 | . . . . 1 . Reactor . | . . . . . . Propulsion 20 | 2 9 . 6 3 . Treads . | . . . . . . Leg 13 | 2 9 . 2 . . Wheel . | . . . . . . Hover . | . . . . . . Flight 7 | . . . 4 3 . Utility 14 | 2 1 . 5 . 6 Device 5 | 1 . . . . 4 Storage 5 | 1 1 . 2 . 1 Processor 3 | . . . 3 . . Hackware 1 | . . . . . 1 Protection . | . . . . . . Artifact . | . . . . . . Weapon 20 | 2 7 . 2 9 . Energy Gun 9 | 1 1 . 2 5 . Energy Cannon . | . . . . . . Ballistic Gun 6 | 1 5 . . . . Ballistic Cannon 4 | . . . . 4 . Launcher 1 | . 1 . . . . Special Weapon . | . . . . . . Impact Weapon . | . . . . . . Slashing Weapon . | . . . . . . Piercing Weapon . | . . . . . . Special Melee Weapon . | . . . . . . Unidentified Prototypes 3 | . . . . 2 1 Parts Lost 15 | . 1 . . 5 9 Power 3 | . . . . 2 1 Propulsion 5 | . . . . 2 3 Utility 5 | . . . . . 5 Weapon 2 | . 1 . . 1 . Highest Loss Streak 9 | . 1 . . 2 9 To Critical Strikes . | . . . . . . Average Slot Usage (%) 93 | . 99 100 97 82 50 Engine 11 | . 14 14 9 4 4 Leg 19 | . 28 28 4 . . Flight 8 | . . . 29 28 14 Device 10 | . 14 14 4 . 8 Storage 11 | . 14 14 9 7 4 Processor 6 | . . . 22 23 11 Energy Gun 9 | . 11 . 10 6 . Ballistic Gun 10 | . 15 14 3 . . Ballistic Cannon 1 | . . . . 6 . Naked Turns . | . . . . . . Heaviest Build 33 | 13 18 18 33 23 17 Greatest Support 40 | 20 20 20 40 24 18 Greatest Overweight (x) 5 | 2 5 . 2 . 2 Average Overweight (x) . | . . . . . . Largest Inventory Capacity 15 | 8 8 8 15 8 8 Average Capacity 7 | 7 8 8 8 8 7 Most Carried 9 | 6 8 7 9 8 8 Average Carried 7 | 3 7 7 6 7 6 Final Capacity 8 | 8 8 8 8 8 5 Final Carried 8 | 4 7 7 8 8 5 Class Distribution -------------------- 59% | Mutant 25% | Sprinter 15% | Scavenger-Mutant Dominant Class ---------------- Mutant | -10/Materials Mutant | -10/Subcaves Sprinter | -8/Materials Sprinter | -7/Factory Sprinter | -6/Factory Resources | -11 -10 -10 -8 -7 -6 ----------- Run | Yrd Mat Sub Mat Fac Fac Matter Collected 1313 | 294 587 . . 370 62 Remotely . | . . . . . . Salvage Created 1082 | 84 869 . . 129 . Parts 72 | 7 58 . . 7 . Haulers Intercepted 2 | . 2 . . . . Recyclers Shooed . | . . . . . . Parts Field Recycled . | . . . . . . Retrieved Matter . | . . . . . . Parts Self-Destructed . | . . . . . . Prevented . | . . . . . . Kills | -11 -10 -10 -8 -7 -6 ------- Run | Yrd Mat Sub Mat Fac Fac Combat Hostiles Destroyed 23 | . 21 . . 2 . Guns 20 | . 19 . . 1 . Cannons 1 | . . . . 1 . AOE 2 | . 2 . . . . Classes Destroyed 7 | 1 5 . . 1 . Worker 4 | . 4 . . . . Tunneler 3 | 3 . . . . . Hauler 2 | . 2 . . . . Watcher 5 | . 3 . . 2 . Swarmer 6 | . 6 . . . . Grunt 16 | . 15 . . 1 . Programmer 1 | . . . . 1 . Best Kill Streak 4 | 3 4 . . 1 . Combat Bots Only 3 | . 3 . . 1 . Max Kills in Single Turn 2 | 1 2 . . 1 . Gunslinging . | . . . . . . Exploded 2 | . 2 . . . . Melee . | . . . . . . Uniques/NPCs Destroyed . | . . . . . . Combat | -11 -10 -10 -8 -7 -6 -------- Run | Yrd Mat Sub Mat Fac Fac Hostile Shots Fired 359 | . 99 3 4 112 141 Missed 138 | . 22 . 2 60 54 Damage Taken 3023 | . 920 63 31 758 1251 Core 1280 | . 179 20 . 224 857 Absorbed by Shields . | . . . . . . Regen/Repaired (Parts) 180 | . 160 . . 20 . Core Remaining (%) 72 | 100 . 20 100 68 . Volleys Fired 132 | 8 99 2 . 23 . Largest 2 | 2 2 1 . 2 . Hottest 110 | 70 70 20 . 110 . Shots Fired 235 | 16 186 2 . 31 . Gun 218 | 16 184 2 . 16 . Cannon 15 | . . . . 15 . Launcher 2 | . 2 . . . . Special . | . . . . . . Kinetic 149 | 8 124 2 . 15 . Thermal 70 | 8 60 . . 2 . Explosive 2 | . 2 . . . . Electromagnetic 14 | . . . . 14 . Robot Hit Streak 10 | 6 10 3 . 10 . Robot Miss Streak 6 | 5 6 . . 3 . Penetration Max . | . . . . . . Secondary Targets . | . . . . . . Shots Hit Robots 141 | 9 108 2 . 22 . Core Hits 57 | 3 48 . . 6 . Critical Kills . | . . . . . . Critical Parts Destroyed 1 | . 1 . . . . Critical Strikes 3 | . 3 . . . . Burn 2 | . 2 . . . . Destroy 1 | . 1 . . . . Melee Attacks . | . . . . . . Impact . | . . . . . . Slashing . | . . . . . . Piercing . | . . . . . . Sneak Attacks . | . . . . . . Combat Hostiles . | . . . . . . Follow-up Attacks . | . . . . . . Damage Inflicted 2187 | 112 1615 23 . 409 28 Guns 1659 | 112 1373 23 . 151 . Cannons 258 | . . . . 258 . Explosions 242 | . 242 . . . . Melee . | . . . . . . Ramming 28 | . . . . . 28 Kinetic 1275 | 49 945 23 . 258 . Thermal 529 | 63 428 . . 38 . Explosive 242 | . 242 . . . . Electromagnetic 113 | . . . . 113 . Impact . | . . . . . . Slashing . | . . . . . . Piercing . | . . . . . . Highest Corruption 5 | . . . . 5 5 Average Corruption 4 | . . . . 4 5 Corruption Purged . | . . . . . . Corruption Blocked . | . . . . . . Effects 8 | . . . . 8 . Message Errors 4 | . . . . 4 . Matter Fused 2 | . . . . 2 . Data Loss (minor) 2 | . . . . 2 . Overload Shots . | . . . . . . Overflow Damage 18 | . . . . 18 . Projectiles 18 | . . . . 18 . Explosions . | . . . . . . Melee . | . . . . . . Knockbacks 4 | . . . . 4 . Impact . | . . . . . . Kinetic 4 | . . . . 4 . Secondary . | . . . . . . Self-Inflicted Damage 58 | . 47 . . . 11 Shots 1 | . 1 . . . . Rammed 6 | . . . . . 6 Targets Rammed 6 | . . . . . 6 Kicked . | . . . . . . Crushed . | . . . . . . Highest Temperature 299 | 36 210 . 22 299 . Average Temperature 84 | 16 46 . 17 156 . Received Heat Transfer 513 | . 351 . 27 93 42 Siege Activations . | . . . . . . Robots Corrupted . | . . . . . . Combat Hostiles . | . . . . . . Parts Fried . | . . . . . . Impact Corruptions . | . . . . . . Robots Melted . | . . . . . . Combat Hostiles . | . . . . . . Parts Melted 3 | . 2 . . 1 . Heat Transferred 1642 | 185 1383 . . 74 . Parts Sabotaged . | . . . . . . Parts Stolen . | . . . . . . Parts Stripped . | . . . . . . Power Chain Reactions . | . . . . . . Alert | -11 -10 -10 -8 -7 -6 ------- Run | Yrd Mat Sub Mat Fac Fac Peak Influence 229 | 15 229 . 107 220 212 Initial 107 | . 9 . 57 48 107 Average 105 | 9 112 . 64 111 139 Maximum Alert Level 1 | . 1 . . 1 1 Low Security (%) 87 | 100 85 . 100 85 97 Level 1 12 | . 14 . . 14 2 Level 2 . | . . . . . . Level 3 . | . . . . . . Level 4 . | . . . . . . Level 5 . | . . . . . . High Security . | . . . . . . Max Security . | . . . . . . Squads Dispatched 10 | . 6 . . 4 . Investigation 4 | . 4 . . . . Extermination . | . . . . . . Reinforcement 3 | . 2 . . 1 . Assault . | . . . . . . Garrison 3 | . . . . 3 . Intercept . | . . . . . . Searches Triggered . | . . . . . . Construction Impeded . | . . . . . . Haulers Reinforced . | . . . . . . Active Scanning Responses . | . . . . . . Cargo Convoy Interrupts . | . . . . . . Stealth | -11 -10 -10 -8 -7 -6 --------- Run | Yrd Mat Sub Mat Fac Fac Distress Signals 3 | . 2 . . . 1 Communications Jammed . | . . . . . . Distress Signals . | . . . . . . Times Spotted 74 | . 30 1 3 14 26 Peak Tracking Total 15 | . 4 1 4 5 15 Tactical Retreats 10 | . 1 . . 4 5 Traps | -11 -10 -10 -8 -7 -6 ------- Run | Yrd Mat Sub Mat Fac Fac Traps Triggered 3 | . 2 . . 1 . Indirectly . | . . . . . . Trap Hack Attempts . | . . . . . . Triggered . | . . . . . . Disarmed . | . . . . . . Reprogrammed . | . . . . . . Reused . | . . . . . . Traps Extracted . | . . . . . . Installed . | . . . . . . Triggered . | . . . . . . Machines | -11 -10 -10 -8 -7 -6 ---------- Run | Yrd Mat Sub Mat Fac Fac Machines Disabled 2 | . 1 . . 1 . Max in Single Turn 1 | . 1 . . 1 . Machines Repaired . | . . . . . . Machines Dismantled . | . . . . . . Machines Sabotaged . | . . . . . . Overloaded Fab Kills . | . . . . . . Hacking | -11 -10 -10 -8 -7 -6 --------- Run | Yrd Mat Sub Mat Fac Fac Machines Accessed 24 | . 7 . 3 13 1 Terminals 17 | . 6 . 3 7 1 Fabricators 3 | . . . . 3 . Repair Stations 4 | . 1 . . 3 . Recycling Units . | . . . . . . Scanalyzers . | . . . . . . Garrison Access . | . . . . . . Total Hacks 60 | . 28 . 5 26 1 Successful 30 | . 16 . 2 11 1 Failed 30 | . 12 . 3 15 . Catastrophic 3 | . 1 . 1 1 . Database Lockouts . | . . . . . . Manual 1 | . 1 . . . . Terminals 40 | . 22 . 5 12 1 Fabricators 7 | . . . . 7 . Repair Stations 13 | . 6 . . 7 . Recycling Units . | . . . . . . Scanalyzers . | . . . . . . Garrison Access . | . . . . . . Terminal Hacks 19 | . 11 . 2 5 1 Record 2 | . 2 . . . . Robot Schematic 1 | . . . . 1 . Robot Analysis 2 | . 2 . . . . Prototype ID Bank 1 | . 1 . . . . Open DSF 1 | . . . . 1 . Alert Level 2 | . 1 . . 1 . Locate Traps 3 | . 2 . 1 . . Dispatch Records 1 | . . . . 1 . Maintenance Status 1 | . 1 . . . . Investigation Status 1 | . 1 . . . . Hauler Manifests 2 | . 1 . 1 . . Zone Layout 2 | . . . . 1 1 Fabricator Hacks 3 | . . . . 3 . Network Status 1 | . . . . 1 . Load Schematic 1 | . . . . 1 . Build 1 | . . . . 1 . Repair Station Hacks 8 | . 5 . . 3 . Scan Component 4 | . 3 . . 1 . Repair 3 | . 2 . . 1 . Refit 1 | . . . . 1 . Recycling Unit Hacks . | . . . . . . Scanalyzer . | . . . . . . Garrison Access Hacks . | . . . . . . Unauthorized Hacks . | . . . . . . Terminals . | . . . . . . Fabricators . | . . . . . . Repair Stations . | . . . . . . Recycling Units . | . . . . . . Scanalyzers . | . . . . . . Garrison Access . | . . . . . . Data Cores Recovered . | . . . . . . Used . | . . . . . . Hacking Detections 21 | . 6 . 2 12 1 Full Trace Events 5 | . 5 . . . . Feedback Events . | . . . . . . Feedback Blocked . | . . . . . . Robot Schematics Acquired 1 | . . . . 1 . Robots Built . | . . . . . . Authchips . | . . . . . . Time . | . . . . . . Total Robot Build Rating . | . . . . . . Part Schematics Acquired . | . . . . . . Parts Built . | . . . . . . Authchips . | . . . . . . Time 95 | . . . . 95 . Total Part Build Rating . | . . . . . . Parts Repaired 3 | . 2 . . 1 . Time 96 | . 52 . . 44 . Parts Recycled . | . . . . . . Recycled Matter . | . . . . . . Retrieved Matter . | . . . . . . Retrieved Components . | . . . . . . Parts Scanalyzed . | . . . . . . Part Schematics Acquired . | . . . . . . Parts Damaged . | . . . . . . Bothacking | -11 -10 -10 -8 -7 -6 ------------ Run | Yrd Mat Sub Mat Fac Fac Used RIF Installer . | . . . . . . Robots Hacked . | . . . . . . Non-combat . | . . . . . . Combat . | . . . . . . Robot Hacks Applied . | . . . . . . Relay Couplers Released . | . . . . . . Fabnet Peak Effective % . | . . . . . . Robots Rewired . | . . . . . . Allies Hacked . | . . . . . . Hacks Repelled . | . . . . . . Allies | -11 -10 -10 -8 -7 -6 -------- Run | Yrd Mat Sub Mat Fac Fac Total Allies . | . . . . . . Largest Group . | . . . . . . Highest-Rated Group . | . . . . . . Highest-Rated Ally . | . . . . . . Total Orders . | . . . . . . Ally Attacks . | . . . . . . Total Damage . | . . . . . . Kills . | . . . . . . Allies Corrupted . | . . . . . . Allies Melted . | . . . . . . Intel | -11 -10 -10 -8 -7 -6 ------- Run | Yrd Mat Sub Mat Fac Fac Robot Analysis Total 2 | . 2 . . . . Derelict Logs Recovered . | . . . . . . Drone Launches . | . . . . . . Drone Recoveries . | . . . . . . Exploration | -11 -10 -10 -8 -7 -6 ------------- Run | Yrd Mat Sub Mat Fac Fac Turns Passed 3072 | 186 1962 37 120 606 161 Spaces Moved 3352 | 62 1194 28 234 1482 352 Core 72 | 6 4 . . . 62 Treads . | . . . . . . Legs 1281 | 56 1190 28 7 . . Wheels . | . . . . . . Hover . | . . . . . . Flight 1999 | . . . 227 1482 290 Fastest Speed 29 | 50 120 120 31 29 32 Average Speed 66 | 118 121 120 36 30 37 Slowest Speed 300 | 150 300 120 200 32 200 Overloaded Moves . | . . . . . . Propulsion Burnouts . | . . . . . . Robots Hopped 9 | . . . 1 2 6 Cave-ins Triggered . | . . . . . . Exploration Rate (%) 31 | 5 100 3 26 39 13 Regions Visited 5 Branch Regions 1 Pre-discovered Areas . | . . . . . . Known Exits Taken 2 | . . . 1 1 . Unknown Exits Taken 3 | 1 1 1 . . . Scrap Searched . | . . . . . . Spaces Dug . | . . . . . . Terrain Destroyed 24 | . 22 . . 2 . Melee . | . . . . . . Projectile 2 | . . . . 2 . AOE 22 | . 22 . . . . Terrain Rammed . | . . . . . . Walls Destroyed . | . . . . . . Machines Disabled . | . . . . . . Actions | -11 -10 -10 -8 -7 -6 --------- Run | Yrd Mat Sub Mat Fac Fac Total 3967 | 156 1524 29 269 1611 378 Wait 323 | 74 175 . . 62 12 Move 3329 | 61 1193 27 231 1477 340 Hop 9 | . . . 1 2 6 Pick Up 44 | 6 13 . 11 11 3 Fast Attach 27 | 5 4 . 7 11 . Attach 18 | 2 1 . 4 5 6 Detach 3 | . . . . 1 2 Swap 17 | . 15 . 2 . . Drop 59 | . 24 . 13 19 3 Fire 132 | 8 99 2 . 23 . Melee . | . . . . . . Ram 6 | . . . . . 6 Kick . | . . . . . . Crush . | . . . . . . Escape Stasis . | . . . . . . Rewire . | . . . . . . Trap . | . . . . . . Miscellaneous . | . . . . . . Route ------- -11/Scrapyard -10/Materials (discovered 6 exits: [*Mat x3] / [*Min x2] / [*Sub]) -10/Subcaves -8/Materials -7/Factory -6/Factory History --------- Turn | Location | Event 20 | -11/Scrapyard | Discovered new exit (range 15) 187 | -11/Scrapyard | Entered Materials 302 | -10/Materials | Build established: Mutant 356 | -10/Materials | Discovered new exit (range 15) 630 | -10/Materials | Repaired Assault Rifle 962 | -10/Materials | Discovered new exit (range 12) 1209 | -10/Materials | Discovered new exit (range 3) 1384 | -10/Materials | Core integrity fell below 50% 1499 | -10/Materials | Discovered new exit (range 10) 1783 | -10/Materials | Build established: Scavenger-Mutant 1839 | -10/Materials | Discovered new exit (range 6) 2080 | -10/Materials | Repaired Assault Rifle 2108 | -10/Materials | Discovered new exit (range 14) 2149 | -10/Materials | Entered Subcaves 2159 | -10/Subcaves | Discovered new exit (range 3) 2186 | -10/Subcaves | Entered Materials 2186 | -8/Materials | Evolved 4 slots: Propulsion x2, Utility x2 2305 | -8/Materials | Discovered new exit (range 6) 2306 | -8/Materials | Identified exit to Factory 2306 | -8/Materials | Entered Factory 2306 | -7/Factory | Evolved 2 slots: Power x1, Weapon x1 2513 | -7/Factory | Build established: Sprinter 2712 | -7/Factory | Repaired Xenon Bombardment Thruster 2910 | -7/Factory | Discovered new exit (range 5) 2911 | -7/Factory | Identified exit to Factory 2912 | -7/Factory | Entered another Factory area 2912 | -6/Factory | Evolved 2 slots: Utility x2 3040 | -6/Factory | Core integrity fell below 50% 3062 | -6/Factory | Core integrity fell below 20% 3073 | -6/Factory | Destroyed by G-50 Soldier with Heavy Laser Last Messages --------------- 03031_ K-01 Serf collects debris. 03031_ Lgt. Deuterium Engine destroyed. 03035_ Imp. Terrain Scanner destroyed. 03036_ K-01 Serf collects debris. 03037_ S-27 Virus destroyed. 03037_ Hacking Suite destroyed. 03039_ Sml. Storage Unit destroyed. 03039_ Slammed into S-27 Virus. 03039_ Visual Processing Unit destroyed. 03039_ System corrupted by crushing effect (+5). 03040_ K-01 Serf collects debris. 03046_ T-07 Excavator is excavating. 03050_ Connecting with Terminal... >>Layout(Zone) Retrieving Zone 5X layout... Downloaded map data. 03055_ K-01 Serf collects debris. 03060_ Adv. ECM Suite destroyed. 03068_ Slammed into S-27 Virus. 03073_ Slammed into Y-54 Guardian. Map ----- +----------------------------------------------------+ | ?????????????????????????????????????????????????? | | ?????????????????????????????????????????????????? | | ?????????????????????????????????????????????????? | | ?????????????????????????????????????????????????? | | ?????????????????????????????????????????????????? | | ?????????????????????????????????????????????????? | | ?????????????????????????????????????????????????? | | ????? ????????????????????????????????????????? | | ????? #???????????????????????????????????????? | | ???# #???????????????????????????????????????? | | ???# #???????????????????????????????????????? | | ???# #???????????????????????????????????????? | | #### #???????????????????????????????????????? | | ? #????????##############?????????????????? | | ? #????????# #?????????????????? | | " """" ! #????????# #????????????#????? | | " """" #????????# """""" ############ #????? | | " """" #????????# """""" ! + #????? | | " """" #??????#?# """""" # #????? | | " """" ########?# """""" # #????? | | " """" #?# s # #????? | | " """" #?# s"""""" # #????? | | #?# s"""""" # +????? | | #?# """""" # #????? | | #?# s""""""g! # + ""? | | ########### #?# ssss@Y # # ? | | # # ##########g##### # ? | | # """ ]! # s + ? | | # """ ! / #/##+? | | # """ # [ # | | # # ! % | | # # *% [% ##+#########? | | # ""T"" #########/##### #### ### #?? | | # """"" ## #??# #??# #?# #?? | | ######### ## #??# #??# #?# #?? | | ????????#### #### #??# #?# #?? | | ???????????# / ####/#############?? | | ???????????# #### # #?????????? | | ???????????# #??# # "" #?????????? | | ???????????# #??# # "T = #?????????? | | ???????????# #??# # "" #?????????? | | ???????????# #??# # #?????????? | | ???????????# #??# + """ [#?????????? | | ???????????# #??# # """ #?????????? | | ???????????# #### # """ #?????????? | | ???????????# + #! *#?????????? | | ???????????# ###### ############?????????? | | ???????????# #???? ##????????????????????? | | ???????????# #???##??????????????????????? | | ?????????????#########???????????????????????????? | +----------------------------------------------------+ Best States ------------- Heat Dissipation 37 Energy Generation 16 Energy Capacity 265 Matter Stores 300 Matter Capacity 300 Sight Range 18 Terrain Scan Range 16 Terrain Scan Density 10 Evasion (%) 64 Targeting Accuracy 6 Offensive Hacking 10 Item Schematics ----------------- None Robot Schematics ------------------ G-47 Trooper | -7/Factory | Hacked Fabricated ------------ Nothing Alien Tech Used ----------------- None Achievements -------------- None Challenges ------------ None Game ------ Seed BeamPrecisionBuckler Manual? 0 Play Time 00:51:01 Cumulative 17.3 hours Start 2024.03.25 @ 09:13:46 End 2024.03.25 @ 10:01:42 Sessions 1 Manual Loads 0 Difficulty Rogue Special Mode None Game No. 45 Rogue 45 Adventurer 0 Explorer 0 Win Type - Total 0 Types 0/0/0/0/0/0/0/0/0 Lore% 16 Gallery% 21 Achievement% 15 Wizard Run 0 Options --------- Layout 1 ASCII 0 Keyboard 0 Movement Numpad Keybinds 0 Fullscreen 1 Font 24/Smallcaps Map View 50x35 Zoom Use 0% Tactical HUD 1 Map Filters NONE Filters NONE Steam 1 RUN: 016540c1-7c4a-4697-83a5-1db754808afb